bitfinex/quotes_SOLUSD_20240917
["timestamp","ask_amount","ask_price","bid_price","bid_amount"]
[1726583970974,14.059,134.37,134.33,18.61]
[1726583971160,6.6169,134.37,134.34,7.4434]
[1726583971349,6.6169,134.37,134.34,23.776884]
[1726583971554,6.6169,134.37,134.35,18.6075]
[1726583972568,0.332833,134.38,134.37,7.4421]
[1726583973078,0.332833,134.38,134.37,31.218984]
[1726583974578,0.332833,134.38,134.37,23.776884]
[1726583974756,0.332833,134.38,134.36,23.776884]
[1726583974955,0.332833,134.38,134.36,31.219384]
[1726583975166,0.332833,134.38,134.36,23.776884]
[1726583975480,0.332833,134.38,134.35,18.6075]
[1726583975981,0.332833,134.38,134.35,26.0505]
[1726583976161,0.332833,134.38,134.36,7.4426]
[1726583976364,0.332833,134.38,134.35,18.6075]
[1726583976684,0.332833,134.38,134.36,7.4422]
[1726583976886,0.332833,134.38,134.35,18.6075]
[1726583977175,0.332833,134.38,134.35,26.0503]
[1726583977474,0.332833,134.38,134.36,7.4425]
[1726583978362,0.332833,134.38,134.37,7.4421]
[1726583978770,0.332833,134.38,134.36,31.219284]
[1726583979077,0.332833,134.38,134.37,7.4421]
[1726583979456,0.332833,134.38,134.36,31.219384]
[1726583980162,0.332833,134.38,134.37,7.4421]
[1726583980588,0.332833,134.38,134.37,31.218984]
[1726583980975,0.332833,134.38,134.37,31.344474]
[1726583981473,3.3e-05,134.38,134.37,52.95734814]
[1726583982183,3.3e-05,134.38,134.37,51.977286]
[1726583982349,0.3616817,134.43,134.42,26.28868]
[1726583984162,0.3616817,134.43,134.42,26.16319]
[1726583984551,0.3616817,134.43,134.42,49.940074]
[1726583984758,0.3616817,134.43,134.42,49.814584]
[1726583984977,0.3616817,134.43,134.39,18.6018]
[1726583985162,0.3616817,134.43,134.4,7.4404]
[1726583985351,0.3616817,134.43,134.39,26.0427]
[1726583985757,7.8004817,134.43,134.39,18.6018]
[1726583986178,7.4394,134.42,134.38,7.4414]
[1726583986352,7.4394,134.42,134.36,26.0482]
[1726583986552,0.3616817,134.43,134.36,18.6061]
[1726583986757,0.3616817,134.43,134.36,26.0486]
[1726583986964,0.3616817,134.43,134.36,18.6061]
[1726583987179,13.7652,134.4,134.35,7.443]
[1726583987673,13.7652,134.4,134.36,7.4425]
[1726583987861,6.3248,134.4,134.37,18.6048]
[1726583988062,6.3248,134.4,134.38,7.4415]
[1726583988378,6.3248,134.4,134.37,26.0467]
[1726583988579,6.3248,134.4,134.38,7.4414]
[1726583989051,6.3248,134.4,134.37,26.0468]
[1726583992670,13.7657,134.4,134.34,18.6084]
[1726583992874,6.3248,134.4,134.34,18.6084]
[1726583993261,7.441,134.39,134.35,7.4431]
[1726583993583,13.7654,134.4,134.36,7.4426]
[1726583993787,6.3248,134.4,134.38,7.4415]
[1726583994474,6.3248,134.4,134.37,31.218784]
[1726583994673,15.5747,134.42,134.39,7.441]
[1726583995271,23.014,134.42,134.38,26.0447]
[1726583995458,23.014,134.42,134.38,18.6034]
[1726583995655,7.4402,134.41,134.37,23.776884]
[1726583995871,7.4408,134.4,134.36,31.219184]
[1726583996080,20.0,134.41,134.36,7.4423]
[1726583996282,7.4406,134.4,134.36,7.4425]
[1726583996481,20.0,134.41,134.37,18.6052]
[1726583996694,20.0,134.41,134.38,7.4413]
[1726583996875,7.4408,134.4,134.35,7.4426]
[1726583997076,27.44,134.41,134.35,23.776884]
[1726583997383,27.44,134.41,134.39,7.4406]
[1726583997384,20.0,134.41,134.39,7.4406]
[1726583997769,20.0,134.41,134.38,26.0443]
[1726583998090,20.0,134.41,134.39,7.4409]
[1726583998286,20.0,134.41,134.38,26.0442]
[1726583998585,20.0,134.41,134.39,7.4409]
[1726583999080,15.5747,134.42,134.39,7.4408]
[1726583999286,15.5747,134.42,134.38,26.0444]
[1726583999473,23.0142,134.42,134.38,26.0444]
[1726583999662,0.3616817,134.43,134.4,18.6009]
[1726583999865,0.3616817,134.43,134.42,7.4393]
[1726584000061,0.3616817,134.43,134.42,31.341674]
[1726584000781,0.3616817,134.43,134.42,31.216184]
[1726584001089,0.3616817,134.43,134.42,31.341674]
[1726584001398,0.3616817,134.43,134.42,51.467164]
[1726584001881,0.3616817,134.49,134.48,49.802984]
[1726584002074,0.3616817,134.49,134.48,50.053964]
[1726584002881,0.3616817,134.49,134.48,23.776884]
[1726584003060,0.3616817,134.49,134.43,7.4387]
[1726584003262,0.3616817,134.49,134.42,46.0369]
[1726584003488,0.3616817,134.49,134.42,26.0369]
[1726584003669,7.7972817,134.49,134.42,18.5977]
[1726584004176,7.7974817,134.49,134.42,18.5977]
[1726584005091,7.4361,134.48,134.43,23.902374]
[1726584005293,7.4362,134.48,134.43,23.902374]
[1726584005480,0.3616817,134.49,134.43,23.902374]
[1726584005481,7.4367,134.47,134.43,23.902374]
[1726584005784,20.0,134.48,134.33,43.81140764]
[1726584005992,20.0,134.48,134.33,6.5076]
[1726584006377,20.0,134.48,134.31,37.30380764]
[1726584006378,7.4408,134.4,134.31,37.30380764]
[1726584006693,34.1792,134.45,134.29,53.35508934]
[1726584006694,7.4417,134.38,134.29,53.35508934]
[1726584007372,18.6009,134.41,134.29,0.3616817]
[1726584007571,7.4426,134.37,134.29,0.3616817]
[1726584007892,18.6009,134.41,134.29,0.3616817]
[1726584008100,18.6009,134.41,134.32,18.6119]
[1726584008802,7.4421,134.37,134.33,7.4443]
[1726584009599,7.4416,134.38,134.34,7.4436]
[1726584009991,7.4411,134.39,134.35,7.4432]
[1726584010192,20.0,134.43,134.39,7.4406]
[1726584010400,7.4394,134.42,134.37,18.6049]
[1726584010705,7.4393,134.42,134.38,23.902374]
[1726584011081,7.4388,134.43,134.38,23.902374]
[1726584011276,7.4384,134.44,134.39,18.602]
[1726584011510,7.4379,134.45,134.42,23.776884]
[1726584012106,6.5668,134.47,134.4,23.776884]
[1726584012307,7.4392,134.43,134.4,23.776884]
[1726584012887,7.4392,134.43,134.39,18.602]
[1726584012888,7.4395,134.42,134.39,23.776884]
[1726584013289,7.4384,134.44,134.39,23.776884]
[1726584014402,7.4384,134.44,134.4,7.4404]
[1726584014609,7.4389,134.43,134.39,23.776884]
[1726584014801,7.4389,134.43,134.4,1.48774842]
[1726584015420,7.4389,134.43,134.28,28.9749654]
[1726584015421,5.874,134.33,134.23,30.48680414]
[1726584015630,0.12549,134.35,134.19,0.3135654]
[1726584015631,7.4498,134.23,134.19,0.3135654]
[1726584015817,7.4543,134.15,134.09,0.3135654]
[1726584016117,27.4543,134.15,134.09,0.3135654]
[1726584016279,0.12549,134.23,134.09,0.3135654]
[1726584016482,7.4533,134.17,134.09,0.3135654]
[1726584016684,0.12549,134.21,134.09,0.3135654]
[1726584016883,7.4538,134.16,134.09,0.3135654]
[1726584017084,7.4538,134.16,134.04,0.3135654]
[1726584017085,0.12549,134.22,134.12,0.3730407]
[1726584017481,20.0,134.24,134.12,0.3730407]
[1726584017685,20.0,134.24,134.13,37.30380764]
[1726584017882,20.0,134.24,134.16,7.4536]
[1726584018088,20.12549,134.24,134.12,0.3730407]
[1726584018400,0.12549,134.23,134.12,0.3730407]
[1726584018791,20.0,134.24,134.12,0.3730407]
[1726584018997,20.0,134.24,134.13,18.6377]
[1726584019189,20.0,134.24,134.16,7.4537]
[1726584019386,20.0,134.24,134.17,7.57859]
[1726584019813,20.0,134.24,134.16,0.12549]
[1726584019993,20.0,134.24,134.16,7.57879]
[1726584020311,20.0,134.24,134.16,0.12549]
[1726584020506,20.0,134.24,134.17,7.453]
[1726584020810,5.874,134.25,134.17,0.12549]
[1726584021017,5.874,134.25,134.2,18.6286]
[1726584021183,5.874,134.25,134.2,26.08]
[1726584021797,5.874,134.25,134.2,18.6286]
[1726584023289,5.874,134.25,134.21,1.48924818]
[1726584023514,23.089902,134.31,134.21,0.25098]
[1726584023687,23.089902,134.31,134.25,7.4487]
[1726584023894,6.746902,134.31,134.23,18.6243]
[1726584024092,0.121902,134.31,134.29,7.4465]
[1726584024403,0.121902,134.31,134.3,0.25098]
[1726584025297,0.121902,134.31,134.25,18.6213]
[1726584025497,0.121902,134.31,134.26,0.12549]
[1726584025812,0.121902,134.31,134.29,7.4464]
[1726584026112,0.121902,134.31,134.3,0.8814099]
[1726584026314,0.121902,134.31,134.28,18.6174]
[1726584026619,0.121902,134.31,134.27,18.6189]
[1726584026913,0.121902,134.31,134.28,0.12549]
[1726584027212,0.121902,134.31,134.28,0.25098]
[1726584027421,0.121902,134.31,134.3,7.69698]
[1726584027603,0.121902,134.31,134.3,7.446]
[1726584027919,0.121902,134.31,134.27,18.6189]
[1726584028098,0.121902,134.31,134.28,7.447]
[1726584028299,0.121902,134.31,134.3,7.446]
[1726584029016,0.121902,134.31,134.3,7.57149]
[1726584029406,0.121902,134.31,134.28,0.12549]
[1726584029604,0.121902,134.31,134.3,26.061]
[1726584029821,0.121902,134.31,134.3,26.31198]
[1726584030714,0.121902,134.31,134.3,18.74049]
[1726584031224,0.121902,134.31,134.3,0.12549]
[1726584032802,0.121902,134.31,134.27,7.4473]
[1726584033117,0.121902,134.31,134.26,18.6193]
[1726584033323,0.121902,134.31,134.27,7.4475]
[1726584033519,0.121902,134.31,134.23,0.12549]
[1726584033710,7.4467,134.29,134.23,7.4498]
[1726584033902,21.48774842,134.28,134.22,18.6249]
[1726584034212,8.93534842,134.27,134.22,18.6249]
[1726584034403,8.93614842,134.26,134.2,7.451]
[1726584034599,1.48774842,134.27,134.2,7.451]
[1726584035140,20.0,134.28,134.23,7.4498]
[1726584035420,20.0,134.28,134.18,37.2624]
[1726584035627,1.60965042,134.31,134.21,18.6274]
[1726584035923,1.60965042,134.31,134.18,37.2624]
[1726584035924,20.0,134.28,134.18,18.6314]
[1726584036124,1.48774842,134.27,134.2,7.4514]
[1726584036334,1.48774842,134.27,134.18,18.6314]
[1726584036335,7.4483,134.26,134.19,7.452]
[1726584036497,20.0,134.25,134.18,26.084]
[1726584036691,1.48774842,134.24,134.16,7.4532]
[1726584036997,1.48774842,134.23,134.12,0.3730407]
[1726584037196,20.0,134.19,134.12,19.0126407]
[1726584037401,20.0,134.19,134.14,7.4546]
[1726584037707,20.0,134.23,134.14,18.636]
[1726584037895,20.0,134.23,134.16,18.6334]
[1726584038230,20.0,134.23,134.18,18.6306]
[1726584038517,20.0,134.23,134.18,26.0828]
[1726584039031,20.0,134.23,134.13,37.2767]
[1726584039032,8.93834842,134.22,134.14,18.6362]
[1726584039196,8.93834842,134.22,134.16,7.4536]
[1726584039402,20.0,134.2,134.14,18.6362]
[1726584039926,20.0,134.19,134.14,18.6362]
[1726584040226,7.4522,134.19,134.14,26.091]
[1726584040632,1.48774842,134.19,134.12,0.3730407]
[1726584041325,20.0,134.17,134.12,7.8289407]
[1726584041916,1.48774842,134.2,134.12,7.8289407]
[1726584042123,20.0,134.18,134.12,7.8289407]
[1726584042423,20.0,134.13,134.12,0.3730407]
[1726584043415,27.4554,134.13,134.12,0.3730407]
[1726584043615,27.58089,134.13,134.12,0.3730407]
[1726584043922,20.0,134.13,134.12,0.3730407]
[1726584045001,8.72943827,134.2,134.12,0.3730407]
[1726584045201,20.25098,134.19,134.12,0.3730407]
[1726584045401,21.61323842,134.19,134.12,0.3730407]
[1726584045601,20.0,134.16,134.12,0.3730407]
[1726584046098,9.06583842,134.19,134.12,0.3730407]
[1726584046314,8.93984842,134.19,134.12,0.3730407]
[1726584046516,15.4043,134.24,134.14,18.637]
[1726584046801,22.8536,134.24,134.15,0.12549]
[1726584047002,15.4043,134.24,134.17,18.6328]
[1726584047228,7.4487,134.26,134.18,7.4526]
[1726584047428,7.4487,134.26,134.19,7.452]
[1726584047608,7.4487,134.26,134.15,0.12549]
[1726584047609,6.2201,134.27,134.21,7.4506]
[1726584047924,6.2201,134.27,134.2,18.6287]
[1726584048130,6.2201,134.27,134.23,7.4498]
[1726584048431,6.2201,134.27,134.21,7.57619]
[1726584048624,6.2201,134.27,134.23,18.6246]
[1726584048921,16.29724027,134.31,134.24,7.4492]
[1726584049251,8.85134027,134.31,134.25,7.4487]
[1726584049411,0.121902,134.31,134.26,7.4479]
[1726584049623,0.121902,134.31,134.27,7.4471]
[1726584049923,7.567302,134.31,134.24,7.4492]
[1726584050123,7.446,134.3,134.23,26.0744]
[1726584050304,8.93374842,134.3,134.23,26.0744]
[1726584050697,7.567702,134.31,134.24,7.4489]
[1726584051120,1.48774842,134.3,134.23,26.0744]
[1726584051323,1.48774842,134.29,134.21,0.12549]
[1726584051504,1.73514042,134.31,134.21,0.12549]
[1726584051707,20.0,134.28,134.22,7.4504]
[1726584051916,20.0,134.28,134.24,7.4491]
[1726584052318,20.0,134.29,134.23,26.0742]
[1726584052625,20.0,134.29,134.21,0.12549]
[1726584052626,7.4485,134.26,134.2,0.12549]
[1726584052933,7.4485,134.26,134.19,7.4516]
[1726584052934,20.0,134.25,134.19,7.452]
[1726584053818,7.4489,134.25,134.19,7.452]
[1726584054027,20.0,134.24,134.19,7.452]
[1726584054244,7.4483,134.26,134.19,7.452]
[1726584054543,20.0,134.25,134.2,7.4514]
[1726584054747,20.0,134.25,134.21,7.4508]
[1726584055106,20.0,134.27,134.23,7.4493]
[1726584055323,27.446,134.3,134.23,7.4493]
[1726584055539,0.121902,134.31,134.24,7.4493]
[1726584055718,0.121902,134.31,134.22,18.6251]
[1726584055719,7.4469,134.29,134.23,7.4497]
[1726584055902,0.121902,134.31,134.2,0.12549]
[1726584056106,7.4487,134.26,134.2,7.4514]
[1726584056535,0.121902,134.31,134.19,18.6299]
[1726584056536,27.46614027,134.31,134.19,18.6299]
[1726584056735,20.0,134.3,134.21,18.6267]
[1726584056909,0.247392,134.31,134.21,18.6267]
[1726584057722,0.247392,134.31,134.22,0.25098]
[1726584058343,7.4467,134.29,134.23,7.4494]
[1726584058538,27.4473,134.28,134.22,7.4503]
[1726584059207,7.4477,134.27,134.21,26.0776]
[1726584059533,7.4482,134.27,134.21,7.4507]
[1726584059742,27.4483,134.26,134.2,26.0795]
[1726584060029,27.4483,134.26,134.14,60.77450358]
[1726584060030,20.0,134.26,134.19,7.4519]
[1726584060229,20.0,134.29,134.2,7.4514]
[1726584060539,20.0,134.27,134.23,7.4494]
[1726584060738,20.0,134.27,134.18,37.2609]
[1726584060739,0.121902,134.31,134.26,7.4478]
[1726584061040,0.121902,134.31,134.25,7.4483]
[1726584061041,7.567402,134.31,134.25,7.4483]
[1726584061229,1.48774842,134.3,134.24,26.0722]
[1726584061417,7.4461,134.3,134.24,18.6229]
[1726584061618,7.4461,134.3,134.24,26.0721]
[1726584062037,20.0,134.29,134.24,26.0721]
[1726584062530,7.4466,134.29,134.24,26.0721]
[1726584062734,20.0,134.28,134.24,26.0721]
[1726584062938,7.4478,134.27,134.21,18.6267]
[1726584063158,7.4478,134.27,134.21,26.0775]
[1726584063373,0.121902,134.31,134.14,60.77450358]
[1726584063374,1.48774842,134.26,134.14,60.77450358]
[1726584063641,21.48774842,134.29,134.21,7.4506]
[1726584063936,7.4483,134.26,134.2,26.0799]
[1726584064142,20.0,134.25,134.2,18.6285]
[1726584064440,20.0,134.26,134.2,18.6285]
[1726584064647,20.0,134.26,134.21,7.4508]
[1726584065048,7.45,134.23,134.18,7.4525]
[1726584065254,1.48774842,134.26,134.19,7.452]
[1726584065541,38.74259,134.29,134.19,7.452]
[1726584065542,1.48774842,134.28,134.19,18.6297]
[1726584065753,27.4466,134.29,134.23,7.4498]
[1726584066131,7.4466,134.29,134.23,7.4498]
[1726584066447,1.60965042,134.31,134.22,7.4503]
[1726584066448,7.4472,134.28,134.22,7.4503]
[1726584066820,7.4467,134.29,134.23,7.4498]
[1726584067025,1.60965042,134.31,134.22,7.4503]
[1726584067026,7.4472,134.28,134.22,7.4503]
[1726584067556,20.0,134.27,134.22,7.4503]
[1726584068228,7.567402,134.31,134.25,7.4487]
[1726584068545,7.567402,134.31,134.25,18.6213]
[1726584068546,0.121902,134.31,134.25,18.6213]
[1726584068741,7.567402,134.31,134.25,26.0696]
[1726584068940,0.121902,134.31,134.26,0.12549]
[1726584069253,0.121902,134.31,134.27,18.6186]
[1726584069928,0.121902,134.31,134.3,7.446]
[1726584070129,0.121902,134.31,134.3,7.69698]
[1726584070521,0.121902,134.31,134.3,27.69698]
[1726584072326,0.4949427,134.39,134.37,7.4421]
[1726584072521,0.4949427,134.39,134.38,7.4415]
[1726584072751,0.4949427,134.39,134.36,18.6066]
[1726584073145,0.4949427,134.39,134.37,7.4421]
[1726584074531,0.4949427,134.39,134.36,26.0491]
[1726584074856,0.4949427,134.39,134.22,25.5757]
[1726584075029,0.4949427,134.39,134.3,18.6149]
[1726584075230,7.4417,134.38,134.32,7.4448]
[1726584075537,20.0,134.37,134.34,7.4435]
[1726584075938,27.442,134.38,134.32,18.6115]
[1726584076143,27.442,134.38,134.32,26.0562]
[1726584076328,0.4949427,134.39,134.32,18.6115]
[1726584076531,20.4949427,134.39,134.34,7.4433]
[1726584076734,7.9360427,134.39,134.34,7.4433]
[1726584076934,20.0,134.38,134.33,7.4442]
[1726584077233,27.4416,134.38,134.33,7.4442]
[1726584077445,0.4949427,134.39,134.35,7.4427]
[1726584077847,0.4949427,134.39,134.36,7.4426]
[1726584078032,0.4949427,134.39,134.38,7.4415]
[1726584078437,0.4949427,134.39,134.37,7.442]
[1726584078862,6.5851,134.42,134.38,7.4415]
[1726584079042,0.5760342,134.39,134.38,7.4415]
[1726584079233,0.5760342,134.39,134.36,18.6061]
[1726584079433,0.5760342,134.39,134.37,7.442]
[1726584079948,0.5760342,134.39,134.36,18.6061]
[1726584080545,0.5760342,134.39,134.35,7.4431]
[1726584080755,0.5760342,134.39,134.33,18.73529]
[1726584080756,0.5760342,134.39,134.36,0.25098]
[1726584080980,0.5760342,134.39,134.37,7.442]
[1726584081141,0.5760342,134.39,134.34,0.12549]
[1726584081481,0.5760342,134.39,134.36,7.4426]
[1726584081641,0.5760342,134.39,134.35,0.12549]
[1726584081838,0.5760342,134.39,134.36,18.73169]
[1726584082042,0.5760342,134.39,134.37,0.12549]
[1726584082441,0.5760342,134.39,134.37,7.56749]
[1726584082755,0.5760342,134.39,134.38,7.4415]
[1726584082961,0.5760342,134.39,134.38,7.56699]
[1726584083336,0.5760342,134.39,134.37,7.442]
[1726584084161,0.5760342,134.39,134.37,0.12549]
[1726584084667,0.5760342,134.39,134.35,7.4431]
[1726584084957,0.5760342,134.39,134.36,7.4425]
[1726584085336,0.5760342,134.39,134.35,18.6076]
[1726584085957,0.5760342,134.39,134.35,26.0507]
[1726584086155,0.5760342,134.39,134.36,0.12549]
[1726584086460,0.5760342,134.39,134.36,7.69348]
[1726584087950,0.5760342,134.39,134.37,7.4419]
[1726584088642,0.5760342,134.39,134.36,7.69348]
[1726584089065,0.5760342,134.39,134.36,0.12549]
[1726584089364,0.5760342,134.39,134.35,26.0506]
[1726584089676,0.5760342,134.39,134.38,7.4415]
[1726584089838,0.5760342,134.39,134.38,7.69248]
[1726584090039,0.5760342,134.39,134.38,27.69248]
[1726584095956,0.5760342,134.39,134.37,18.605]
[1726584096164,0.5760342,134.39,134.38,7.4415]
[1726584096348,0.5760342,134.39,134.36,18.606]
[1726584096875,0.5760342,134.39,134.36,26.0486]
[1726584097067,0.5760342,134.39,134.36,18.606]
[1726584097273,0.5760342,134.39,134.37,7.4417]
[1726584097574,0.5760342,134.39,134.38,7.4415]
[1726584099073,0.5760342,134.39,134.38,7.69248]
[1726584099574,0.5760342,134.39,134.38,7.56699]
[1726584099882,0.5760342,134.39,134.38,7.69248]
[1726584104378,0.5760342,134.39,134.37,7.442]
[1726584105757,0.5760342,134.39,134.36,26.17389]
[1726584105977,0.5760342,134.39,134.37,7.56749]
[1726584107253,0.5760342,134.39,134.36,26.0486]
[1726584107459,0.5760342,134.39,134.33,18.61]
[1726584107460,7.4423,134.37,134.33,18.61]
[1726584107653,7.4418,134.38,134.33,18.61]
[1726584107853,7.4417,134.38,134.33,26.0539]
[1726584108064,8.0172342,134.39,134.34,7.4436]
[1726584108273,0.5760342,134.39,134.36,7.4425]
[1726584108779,0.5760342,134.39,134.35,26.0509]
[1726584109370,0.5760342,134.39,134.35,18.6079]
[1726584109371,8.0172342,134.39,134.35,18.6079]
[1726584109695,8.0172342,134.39,134.35,26.0509]
[1726584110665,7.4416,134.38,134.32,20.12549]
[1726584110870,0.5760342,134.39,134.35,7.4431]
[1726584111377,8.0171342,134.39,134.34,7.4436]
[1726584111791,8.0171342,134.39,134.34,7.56909]
[1726584112083,7.4425,134.37,134.33,18.6106]
[1726584112456,1.48774842,134.36,134.3,18.6144]
[1726584112786,7.4441,134.34,134.3,18.6144]
[1726584112964,7.4433,134.35,134.3,26.0602]
[1726584113580,7.4433,134.35,134.31,7.4454]
[1726584113789,7.4428,134.36,134.31,7.4454]
[1726584115373,20.0,134.36,134.32,7.57029]
[1726584115572,0.5760342,134.39,134.32,18.73759]
[1726584115769,0.5760342,134.39,134.34,18.6094]
[1726584115974,0.5760342,134.39,134.35,7.4431]
[1726584116176,0.5760342,134.39,134.34,18.73489]
[1726584116383,0.5760342,134.39,134.35,7.56849]
[1726584116806,0.5760342,134.39,134.36,18.73199]
[1726584117267,0.5760342,134.39,134.37,7.4419]
[1726584117468,0.5760342,134.39,134.36,26.17449]
[1726584119582,0.5760342,134.39,134.36,0.12549]
[1726584119771,8.0170342,134.39,134.35,0.12549]
[1726584119979,7.4419,134.38,134.34,0.12549]
[1726584120171,7.4421,134.37,134.33,18.6098]
[1726584120373,7.4417,134.38,134.33,18.6098]
[1726584120593,0.5760342,134.39,134.33,26.0539]
[1726584120790,2.06378262,134.39,134.32,7.4447]
[1726584121016,2.06378262,134.39,134.29,7.4463]
[1726584121017,7.4441,134.34,134.29,7.4463]
[1726584121178,20.0,134.34,134.21,53.2608]
[1726584121377,20.0,134.32,134.26,18.6201]
[1726584121581,20.0,134.32,134.24,7.4493]
[1726584121582,7.4465,134.29,134.24,7.4493]
[1726584121815,7.4465,134.29,134.23,26.0737]
[1726584121982,7.4473,134.28,134.23,26.0736]
[1726584122182,21.48774842,134.32,134.23,18.6239]
[1726584122183,20.0,134.3,134.23,18.6239]
[1726584122495,1.48774842,134.3,134.2,37.3029042]
[1726584122694,1.48774842,134.3,134.23,7.4498]
[1726584122997,7.4467,134.29,134.24,7.4491]
[1726584123907,7.4459,134.31,134.26,7.448]
[1726584124206,7.4459,134.31,134.25,7.57409]
[1726584124585,38.878265,134.32,134.21,18.6268]
[1726584124891,20.265265,134.32,134.27,7.4472]
[1726584125090,0.265265,134.32,134.3,7.4459]
[1726584125288,0.265265,134.32,134.31,7.4454]
[1726584126093,0.265265,134.32,134.31,7.69638]
[1726584126986,0.265265,134.32,134.31,27.69638]
[1726584131832,0.265265,134.32,134.31,7.69638]
[1726584132612,0.265265,134.32,134.31,7.4454]
[1726584133402,0.265265,134.32,134.31,27.4454]
[1726584134112,0.265265,134.32,134.31,27.57089]
[1726584135103,0.265265,134.32,134.31,27.69638]
[1726584136534,0.265265,134.32,134.31,7.4454]
[1726584136743,0.265265,134.32,134.3,7.4455]
[1726584136903,0.265265,134.32,134.31,7.4454]
[1726584137604,0.265265,134.32,134.3,7.4458]
[1726584137803,0.265265,134.32,134.31,7.4454]
[1726584139021,0.265265,134.32,134.31,7.69638]
[1726584139324,0.265265,134.32,134.31,27.69638]
[1726584139530,6.4341,134.38,134.31,27.69638]
[1726584139531,6.6953813,134.38,134.35,7.4432]
[1726584139828,6.6953813,134.38,134.33,18.6103]
[1726584139829,7.1861884,134.38,134.34,0.12549]
[1726584140016,7.1861884,134.38,134.33,18.6103]
[1726584140328,14.6277884,134.38,134.33,26.0544]
[1726584140826,7.4422,134.37,134.33,18.6103]
[1726584141025,14.6277884,134.38,134.33,26.0546]
[1726584141333,7.1861884,134.38,134.34,7.56919]
[1726584142428,0.7520884,134.38,134.37,7.4421]
[1726584142630,0.7520884,134.38,134.37,7.69308]
[1726584142825,0.7520884,134.38,134.37,0.25098]
[1726584144222,0.7520884,134.38,134.36,0.12549]
[1726584144420,0.7520884,134.38,134.35,26.05]
[1726584144727,0.7520884,134.38,134.33,0.12549]
[1726584144927,0.7520884,134.38,134.33,7.4439]
[1726584145130,0.7520884,134.38,134.34,20.0969391]
[1726584145445,0.7520884,134.38,134.37,7.4421]
[1726584145603,0.7520884,134.38,134.37,8.92990685]
[1726584145808,0.7520884,134.38,134.37,1.48780685]
[1726584146143,0.7520884,134.38,134.36,26.0478]
[1726584146305,0.7520884,134.38,134.37,0.12549]
[1726584146508,0.7520884,134.38,134.36,18.6053]
[1726584146707,8.1936884,134.38,134.33,26.0543]
[1726584146928,0.7520884,134.38,134.34,0.12549]
[1726584147130,7.443,134.36,134.31,7.4454]
[1726584147322,0.7520884,134.38,134.31,7.4453]
[1726584147523,7.4427,134.36,134.31,7.4453]
[1726584148412,8.1936884,134.38,134.33,7.4439]
[1726584148713,8.1937884,134.38,134.34,7.4437]
[1726584148918,8.1937884,134.38,134.32,18.6117]
[1726584149121,8.1937884,134.38,134.33,7.69518]
[1726584149348,0.7520884,134.38,134.34,7.4436]
[1726584149513,20.7520884,134.38,134.34,7.4436]
[1726584149714,0.7520884,134.38,134.33,0.25098]
[1726584150410,7.4421,134.37,134.33,0.25098]
[1726584150612,7.4427,134.36,134.33,0.25098]
[1726584150824,7.4423,134.37,134.33,0.25098]
[1726584152232,0.7520884,134.38,134.33,0.25098]
[1726584152233,7.4427,134.36,134.33,0.25098]
[1726584152443,8.1936884,134.38,134.33,7.69478]
[1726584152618,20.7520884,134.38,134.33,7.56929]
[1726584152937,7.4421,134.37,134.33,7.56929]
[1726584153534,0.7520884,134.38,134.35,0.12549]
[1726584153732,0.7520884,134.38,134.34,0.12549]
[1726584153942,7.4424,134.37,134.33,0.12549]
[1726584154146,22.23983682,134.38,134.33,0.12549]
[1726584154379,7.4453,134.32,134.26,55.8578]
[1726584154520,7.7052813,134.34,134.29,7.4464]
[1726584155444,7.4444,134.33,134.28,26.0643]
[1726584155735,7.6739258,134.33,134.28,26.0643]
[1726584156441,0.2295258,134.33,134.29,7.4464]